bitfinex/quotes_ETHUSD_20251015
["timestamp","ask_amount","ask_price","bid_price","bid_amount"]
[1760540578247,9.0183,4007.4,4006.0,2.49625251]
[1760540578540,0.2141,4007.8,4005.6,0.161]
[1760540578716,0.2141,4007.8,4006.2,2.49613082]
[1760540578717,2.49519674,4007.7,4006.2,2.49613082]
[1760540578918,2.49539038,4007.4,4006.1,0.4578]
[1760540579120,2.70924008,4007.8,4006.4,2.49600208]
[1760540579322,0.124,4007.0,4006.3,0.1248]
[1760540579526,0.4373,4007.3,4005.6,2.822]
[1760540579704,0.124,4006.7,4006.1,0.1248]
[1760540580137,0.2141,4008.4,4006.4,2.49600638]
[1760540580356,5.057921,4008.2,4006.2,3.1188]
[1760540580550,5.057921,4008.2,4005.7,0.2822]
[1760540580551,1.728,4007.7,4005.9,2.49630197]
[1760540580718,0.6336,4007.5,4005.6,0.161]
[1760540580901,2.3616,4007.2,4005.6,0.161]
[1760540581261,0.6336,4006.9,4005.0,0.4578]
[1760540581443,20.736215,4006.4,4004.5,0.1716]
[1760540581760,20.736215,4006.4,4004.4,2.49720811]
[1760540581761,0.6336,4006.0,4004.4,2.49720811]
[1760540581915,0.2141,4007.6,4004.4,0.51661818]
[1760540582240,0.2141,4007.9,4005.9,2.65729954]
[1760540582406,1.728,4007.5,4005.9,0.161]
[1760540582604,2.49549332,4007.3,4005.8,2.49637613]
[1760540582799,2.49549332,4007.3,4005.5,0.161]
[1760540582800,0.4373,4007.4,4005.5,0.161]
[1760540583034,1.728,4007.3,4006.0,2.4962209]
[1760540583209,0.4373,4007.4,4005.7,0.02496442]
[1760540583415,2.49559665,4007.1,4005.8,0.31403017]
[1760540583642,3.12910503,4007.3,4005.6,0.4578]
[1760540583800,0.6336,4007.1,4005.6,0.4578]
[1760540584004,0.6336,4007.1,4004.4,0.51661818]
[1760540584005,2.49582797,4006.7,4005.3,2.49664249]
[1760540584204,2.49583662,4006.7,4005.3,2.49668323]
[1760540584418,0.2141,4006.8,4005.2,0.161]
[1760540584419,1.728,4006.5,4005.2,0.161]
[1760540584721,3.720797,4006.1,4004.5,2.49719066]
[1760540585031,3.720797,4006.1,4003.8,1.728]
[1760540585032,0.6336,4005.9,4003.6,0.4578]
[1760540585209,10.95136272,4005.2,4003.5,0.1716]
[1760540585407,7.66685279,4004.9,4003.5,2.66940055]
[1760540585648,2.785,4004.8,4003.5,0.68834004]
[1760540585852,0.2205,4004.9,4003.6,0.02497752]
[1760540586127,2.49701425,4004.8,4003.5,0.1716]
[1760540586412,0.4285,4004.9,4003.5,0.1716]
[1760540586638,6.248795,4004.8,4003.5,0.1716]
[1760540586826,1.728,4004.7,4003.1,0.1749]
[1760540587137,6.248795,4004.8,4003.1,0.1749]
[1760540587138,6.161005,4004.8,4003.1,0.1749]
[1760540587337,6.161005,4004.8,4003.2,2.49800159]
[1760540587548,6.161005,4004.8,4003.4,2.4978768]
[1760540587743,6.161005,4004.8,4003.6,2.49770637]
[1760540588045,6.161005,4004.8,4003.2,0.26729016]
[1760540588046,3.758868,4005.4,4003.3,0.4526]
[1760540588252,1.728,4005.3,4004.2,2.49737197]
[1760540588569,0.4285,4006.4,4004.3,0.02497315]
[1760540588868,0.2205,4006.2,4005.2,2.49673501]
[1760540589007,0.2205,4006.2,4004.7,0.1716]
[1760540589008,8.386525,4006.1,4004.7,0.1716]
[1760540589341,13.120406,4005.9,4004.3,2.4972563]
[1760540589540,11.780929,4005.7,4003.3,0.4526]
[1760540589721,2.377,4005.8,4003.3,0.4526]
[1760540589722,1.728,4005.4,4003.3,0.4526]
[1760540589917,0.6336,4005.1,4003.3,0.32875]
[1760540590137,0.1248,4003.9,4003.2,0.1248]
[1760540590337,2.3616,4004.9,4002.0,0.6242]
[1760540590530,0.649,4004.8,4002.0,0.6242]
[1760540590730,0.6336,4004.5,4002.0,0.6242]
[1760540590938,2.4973953,4004.2,4002.0,0.6242]
[1760540591136,0.4285,4004.1,4002.0,0.6242]
[1760540591441,5.52850837,4004.0,4002.7,2.49827354]
[1760540591642,4.85892419,4004.3,4002.8,2.49819279]
[1760540591850,3.13092129,4004.3,4002.9,2.49815645]
[1760540592150,2.49757805,4003.9,4002.3,2.49855646]
[1760540592386,2.49774809,4003.7,4002.1,0.78122]
[1760540592546,3.402002,4003.7,4002.4,2.49845671]
[1760540592879,2.3616,4003.5,4001.9,0.002]
[1760540593046,0.2205,4002.5,4001.9,0.002]
[1760540593377,2.71895173,4002.5,4001.9,0.002]
[1760540593575,0.2205,4002.5,4001.9,0.002]
[1760540594071,0.4285,4002.4,4001.9,0.002]
[1760540594975,0.4285,4002.3,4001.9,0.002]
[1760540595144,2.9270791,4002.3,4001.9,0.002]
[1760540595342,2.49875062,4002.0,4001.9,0.002]
[1760540595543,0.8541,4002.9,4001.9,0.002]
[1760540595744,11.62097668,4002.7,4001.9,0.002]
[1760540595970,2.49849404,4002.5,4001.9,0.002]
[1760540596259,2.4985727,4002.3,4001.9,0.002]
[1760540596436,0.4285,4002.6,4001.9,0.002]
[1760540596637,0.2205,4002.9,4001.9,0.002]
[1760540597581,2.49844522,4002.5,4001.9,0.002]
[1760540597736,2.4986235,4002.3,4001.9,0.002]
[1760540597938,2.49875062,4002.0,4001.9,0.002]
[1760540598137,8.32262562,4002.0,4001.9,0.002]
[1760540598346,20.40928862,4002.0,4001.9,0.002]
[1760540598673,20.40928862,4002.0,4001.4,0.002]
[1760540598674,2.50022118,3999.7,3999.4,3.61745275]
[1760540598875,30.0,4001.6,3999.4,3.61745275]
[1760540598876,2.72081253,3999.5,3999.4,3.61745275]
[1760540599078,11.45946353,3999.5,3999.4,3.18065275]
[1760540599373,30.0,3999.2,3996.4,3.67841253]
[1760540599532,2.50136291,3997.9,3996.5,0.36784125]
[1760540599741,30.0,3997.7,3996.4,3.67841253]
[1760540599946,2.7882,3997.6,3996.4,3.67841253]
[1760540600146,0.6336,3997.2,3996.5,0.0016]
[1760540600352,0.4266,3997.5,3996.5,0.0008]
[1760540600558,0.6336,3997.4,3996.5,0.0008]
[1760540600788,0.8387,3997.7,3996.4,3.67841253]
[1760540600953,0.2051,3997.7,3996.4,3.67841253]
[1760540601144,0.1248,3996.6,3996.5,0.36784125]
[1760540601341,0.4247,3999.0,3996.5,0.82044125]
[1760540601579,0.4247,3999.0,3996.6,0.47762126]
[1760540601783,0.1248,3998.0,3996.8,10.07688194]
[1760540601971,0.2205,3999.6,3997.9,0.2251]
[1760540602164,1.0,4000.0,3998.0,0.4526]
[1760540602349,1.0,4000.0,3998.0,0.4776125]
[1760540602680,0.2202,3999.9,3998.1,0.32040143]
[1760540602864,0.2202,3999.9,3997.0,0.4526]
[1760540602865,8.888588,3999.6,3997.0,0.4526]
[1760540603044,0.2046,3999.8,3997.1,0.47761813]
[1760540603245,0.2202,3999.9,3997.1,0.4526]
[1760540603446,1.0,4000.0,3997.2,0.65861751]
[1760540603649,0.2191,3999.9,3997.3,0.4526]
[1760540603848,5.318964,3999.8,3997.3,0.4526]
[1760540604047,12.244118,3999.4,3997.4,0.29542912]
[1760540604282,11.001267,3999.2,3997.3,0.4526]
[1760540604482,11.001267,3999.2,3996.4,6.18064961]
[1760540604483,2.50093785,3998.5,3996.4,6.18064961]
[1760540604702,0.6336,3997.9,3996.4,3.67841253]
[1760540604849,2.50174507,3997.3,3996.4,3.67841253]
[1760540605158,0.1172,3997.8,3996.4,3.67841253]
[1760540605357,4.302528,3997.7,3996.4,3.67841253]
[1760540605692,7.304122,3997.4,3996.4,3.67841253]
[1760540605991,8.659678,3997.2,3996.4,3.67841253]
[1760540606278,7.946784,3997.2,3996.4,2.67841253]
[1760540606689,0.2038,3997.3,3996.4,2.67841253]
[1760540606892,0.1172,3997.8,3996.4,2.94625378]
[1760540607199,0.1015,3998.9,3996.5,0.4526]
[1760540607416,0.322,3998.4,3996.5,0.4526]
[1760540607717,0.2205,3999.0,3996.6,0.47762126]
[1760540607879,0.2205,3999.0,3996.7,2.5020642]
[1760540608080,0.2191,3999.9,3998.6,2.50083156]
[1760540608281,3.0,4000.5,3998.5,2.50093785]
[1760540608534,2.61352,4000.5,3998.6,0.4526]
[1760540608735,0.1194,4000.8,3999.9,2.5000605]
[1760540609023,0.2205,4002.0,3999.5,0.2251]
[1760540609179,6.473739,4001.7,3999.6,0.27254359]
[1760540609383,9.037834,4001.5,3999.5,0.2251]
[1760540609612,2.8985,4001.3,4000.0,2.49999033]
[1760540609915,2.8985,4001.3,3999.8,2.50006707]
[1760540610081,2.8985,4001.3,3999.5,0.2251]
[1760540610591,3.124323,4001.9,3999.5,0.47760312]
[1760540610913,0.2205,4002.5,3999.6,0.29780035]
[1760540611078,0.2205,4002.5,3998.9,0.2251]
[1760540611079,0.1042,4004.1,3999.8,4.135795]
[1760540611415,3.34286,4003.9,4000.4,2.49975002]
[1760540611617,3.34286,4003.9,4002.5,2.49839338]
[1760540611618,2.238428,4003.9,4002.5,2.49839338]
[1760540611918,2.49768322,4003.8,4001.9,0.2251]
[1760540612084,0.1248,4002.5,4001.9,0.2251]
[1760540612279,0.1248,4002.5,4002.0,2.49875062]
[1760540612591,0.1248,4002.5,4001.9,0.2251]
[1760540613416,0.124,4002.5,4001.8,0.1248]
[1760540613916,0.2194,4002.7,4001.3,0.2251]
[1760540614212,2.60315895,4003.5,4001.5,2.49903134]
[1760540614213,9.091825,4003.2,4001.5,2.49903134]
[1760540614413,8.343825,4003.1,4001.3,0.2251]
[1760540614618,4.22561858,4003.9,4001.4,0.4526]
[1760540614782,0.1192,4004.0,4001.4,0.4526]
[1760540614991,0.2194,4005.0,4001.7,2.49893795]
[1760540615206,2.484775,4004.7,4002.9,2.49817486]
[1760540615404,2.484775,4004.7,4002.6,2.49835734]
[1760540615405,1.728,4004.5,4003.0,2.49812348]
[1760540615586,2.49734221,4004.3,4002.2,0.2158]
[1760540615783,12.086175,4004.1,4002.2,0.2158]
[1760540615984,1.728,4004.6,4002.2,0.2158]
[1760540616318,3.188722,4004.6,4002.3,0.48878563]
[1760540616527,0.1065,4004.7,4002.4,0.024985]
[1760540616820,0.001,4004.8,4003.1,2.49805887]
[1760540617018,2.851926,4004.7,4002.5,0.4638]
[1760540617221,2.851926,4004.7,4002.6,0.2962305]
[1760540617434,0.001,4004.8,4003.7,2.49767568]
[1760540617590,0.001,4004.8,4003.7,2.49768963]
[1760540617795,0.001,4004.8,4003.6,0.6796]
[1760540618103,9.577903,4004.7,4003.1,0.2158]
[1760540618302,0.001,4004.8,4003.2,0.4638]
[1760540618557,0.001,4004.8,4003.3,2.681]
[1760540618748,0.001,4004.8,4004.7,2.71286594]
[1760540619031,0.001,4005.3,4004.7,2.73783659]
[1760540619239,0.001,4005.3,4004.8,2.49700359]
[1760540619420,0.001,4005.3,4004.7,0.2158]
[1760540619729,0.001,4005.3,4003.5,0.6796]
[1760540620022,2.49681655,4005.1,4003.1,0.2158]
[1760540620209,0.001,4005.3,4003.1,0.2158]
[1760540620420,2.49698952,4004.9,4003.1,2.71384966]
[1760540620608,2.49702702,4004.8,4003.1,2.71384966]
[1760540620803,6.305503,4004.7,4003.1,0.2158]
[1760540621007,0.001,4005.3,4002.8,0.4638]
[1760540621008,3.636986,4004.9,4002.8,0.4638]
[1760540621207,3.636986,4004.9,4001.0,0.2158]
[1760540621208,13.060339,4004.6,4002.2,0.6796]
[1760540621414,4.96150599,4004.5,4002.2,0.6796]
[1760540621619,2.49781196,4003.6,4002.2,0.6796]
[1760540621815,7.247482,4003.4,4001.6,0.4638]
[1760540622016,3.085,4003.7,4001.6,0.4638]
[1760540622189,12.204237,4004.2,4001.6,0.4638]
[1760540622515,0.2154,4003.9,4001.7,2.49893795]
[1760540622716,0.2142,4003.9,4002.0,2.4986988]
[1760540622902,0.2142,4003.9,4001.8,0.8040738]
[1760540623112,0.2142,4003.9,4001.8,0.4638]
[1760540623113,2.49773878,4003.7,4001.8,0.4638]
[1760540623406,0.1013,4003.8,4001.9,2.4988087]
[1760540623612,2.08538,4003.7,4001.8,0.4638]
[1760540623820,0.1015,4005.2,4001.8,0.4638]
[1760540624131,0.1248,4003.9,4003.3,0.1248]
[1760540624431,0.1248,4003.9,4001.8,0.4638]
[1760540624432,0.1248,4003.3,4002.4,0.1248]
[1760540624634,0.1248,4002.9,4002.4,0.1248]
[1760540624938,0.1248,4003.5,4002.8,0.1248]
[1760540625233,0.1037,4004.8,4002.9,0.4638]
[1760540625436,0.1248,4004.0,4003.3,0.1248]
[1760540626004,0.3125,4004.1,4002.3,0.4638]
[1760540626212,0.3125,4004.1,4002.5,2.49843153]
[1760540626413,2.49740362,4004.2,4002.3,2.96234546]
[1760540626609,0.099,4004.7,4002.4,0.4638]
[1760540626813,0.2145,4004.9,4003.0,2.49807922]
[1760540627045,0.2145,4004.9,4003.1,2.71384307]
[1760540627046,2.787438,4004.8,4003.1,2.71384307]
[1760540627246,2.787438,4004.8,4003.2,2.49798281]
[1760540627547,0.099,4004.7,4003.1,0.2158]
[1760540627751,0.2145,4004.9,4003.1,0.2158]
[1760540628047,0.001,4005.3,4003.2,0.4638]
[1760540628438,0.001,4005.3,4003.8,2.49760988]
[1760540628635,0.001,4005.3,4003.3,0.33576]
[1760540628636,0.001,4005.3,4004.3,2.49731017]
[1760540628840,0.001,4005.3,4003.6,2.4977412]
[1760540629040,0.001,4005.3,4003.9,2.49756487]
[1760540629254,0.001,4005.3,4004.6,2.49707997]
[1760540629547,0.001,4005.3,4004.0,3.1408]
[1760540629737,0.001,4005.3,4004.8,2.49695476]
[1760540629938,0.001,4005.3,4004.7,2.49706458]
[1760540630137,0.001,4005.3,4004.4,2.49723605]
[1760540630338,0.001,4005.3,4004.1,0.2158]
[1760540630725,0.001,4005.3,4003.6,2.49775202]
[1760540630915,2.7289,4005.2,4003.4,0.4638]
[1760540631117,2.7289,4005.2,4001.7,3.62392477]
[1760540631118,10.559003,4005.0,4002.6,0.4638]
[1760540631316,0.2123,4004.9,4003.2,2.96177507]
[1760540631627,0.001,4004.1,4003.3,0.4638]
[1760540631827,0.001,4004.1,4003.1,0.2158]
[1760540632016,0.001,4004.1,4002.6,2.49836769]
[1760540632017,0.001,4004.1,4003.2,0.2158]
[1760540632219,0.001,4004.1,4003.3,0.02497939]
[1760540632417,0.001,4004.1,4004.0,2.49750249]
[1760540632635,0.001,4004.1,4004.0,2.74725274]
[1760540632835,0.001,4004.1,4003.3,0.4638]
[1760540633679,0.001,4004.1,4003.1,0.6796]
[1760540633893,0.001,4004.1,4003.3,0.4638]
[1760540634177,0.001,4004.1,4002.4,0.4638]
[1760540634536,0.001,4004.1,4003.2,0.2357]
[1760540634938,0.001,4004.1,4002.5,0.4648]
[1760540635150,0.001,4004.1,4002.7,2.4982651]
[1760540635571,0.001,4004.1,4002.9,2.49817323]
[1760540635777,0.001,4004.1,4002.7,2.49831363]
[1760540635942,0.1248,4003.6,4002.9,0.1248]
[1760540636146,0.001,4004.1,4002.5,1.05071521]
[1760540636147,0.001,4004.1,4003.5,0.2357]
[1760540636351,0.001,4004.1,4003.6,2.49775202]
[1760540636548,0.001,4005.3,4003.7,0.02497689]
[1760540636748,0.001,4005.3,4003.8,0.4648]
[1760540636949,0.0002,4005.3,4005.2,0.2357]
[1760540637150,0.0002,4005.3,4004.9,2.49692642]
[1760540637429,0.0002,4005.3,4005.0,2.96167579]
[1760540637703,2.49588478,4006.6,4005.0,0.4648]
[1760540637912,0.0086,4006.8,4005.0,0.4648]
[1760540638214,3.668324,4006.9,4005.2,2.49669357]
[1760540638493,2.71143314,4008.0,4005.3,0.48976691]
[1760540638658,2.49536592,4007.5,4005.3,0.4648]
[1760540638995,0.65211277,4009.8,4007.4,0.2357]
[1760540639197,0.1256,4010.1,4007.4,3.19583627]
[1760540639365,2.49414273,4009.4,4007.4,3.19583627]
[1760540639695,0.099,4009.7,4007.4,3.19588025]
[1760540639894,1.728,4009.2,4007.5,2.49527123]
[1760540640098,0.099,4009.7,4007.6,0.02495259]
[1760540640313,2.49390273,4009.8,4007.7,0.4648]
[1760540640589,0.001,4010.0,4009.4,2.72983877]
[1760540640753,0.001,4010.0,4009.0,0.26064387]
[1760540641092,0.001,4010.0,4008.5,0.2357]
[1760540641329,0.125,4009.9,4008.5,0.2357]
[1760540641525,2.957221,4009.4,4007.4,0.2357]
[1760540641695,3.391109,4009.2,4007.4,0.2357]
[1760540641881,13.800365,4008.8,4007.1,0.4648]
[1760540642081,0.3145,4008.7,4006.5,0.2357]
[1760540642281,1.728,4008.1,4006.5,0.7005]
[1760540642598,1.728,4007.8,4005.7,0.4648]
[1760540642917,1.728,4007.4,4005.5,0.2357]
[1760540643221,1.728,4006.8,4005.0,0.7005]
[1760540643405,1.728,4006.6,4005.1,2.4968097]
[1760540643606,5.070707,4006.3,4004.2,0.4648]
[1760540643787,0.1004,4006.2,4004.2,0.4648]
[1760540644115,2.3616,4005.7,4003.4,0.7005]
[1760540644316,2.3616,4005.3,4002.2,1.124]
[1760540644517,0.2255,4005.6,4003.1,0.72548064]
[1760540644692,4.22458153,4005.5,4003.1,0.7005]
[1760540644892,1.728,4005.4,4003.2,0.02498001]
[1760540645094,0.2255,4005.6,4003.3,0.29945042]
[1760540645306,0.1248,4005.6,4003.3,0.29945042]
[1760540645608,0.1246,4006.1,4004.8,2.49698589]
[1760540645810,0.1246,4006.1,4003.3,0.29945042]
[1760540645811,0.1246,4006.1,4004.6,2.49711788]
[1760540646027,0.1246,4006.1,4004.7,2.49705227]
[1760540646231,0.6336,4005.8,4003.6,0.4494]
[1760540646393,3.461572,4005.7,4004.1,2.49742327]
[1760540646587,2.49632102,4005.9,4003.6,2.94714117]
[1760540646588,2.42326,4005.5,4003.6,2.94714117]
[1760540646815,2.00978,4005.5,4003.7,0.29471412]
[1760540647018,4.22465568,4005.4,4003.6,0.4494]
[1760540647321,4.22465568,4005.4,4003.4,2.49784935]
[1760540647322,6.2868,4005.0,4003.4,2.49784935]
[1760540647520,0.2144,4004.9,4003.1,0.2357]
[1760540648089,2.4973073,4004.4,4003.0,0.2357]
[1760540648289,2.4973073,4004.4,4002.6,2.49836018]
[1760540648290,1.728,4004.2,4002.6,2.49836018]
[1760540648504,2.3616,4003.9,4002.1,0.4494]
[1760540648802,5.312613,4003.3,4001.8,2.49881901]
[1760540648993,2.17008,4003.3,4001.6,0.222]
[1760540649187,0.6336,4003.2,4001.6,0.222]
[1760540649392,2.3616,4002.8,4001.0,0.222]
[1760540649584,3.179255,4002.9,4001.0,0.222]
[1760540649585,8.996154,4002.5,4001.0,0.222]
[1760540649791,4.087737,4002.2,4000.9,0.222]
[1760540650088,0.2298,4002.7,4001.1,0.222]
[1760540650836,1.728,4002.5,4001.1,0.222]
[1760540650989,4.86023212,4002.2,4000.4,0.222]
[1760540651194,2.3616,4002.5,4001.2,2.49923679]
[1760540651426,1.728,4002.5,4000.6,0.4494]
[1760540651725,1.728,4002.3,4001.1,0.002]
[1760540651890,0.1251,4002.7,4001.1,0.002]
[1760540652096,0.1251,4003.0,4001.9,2.49878489]
[1760540652311,0.1248,4003.4,4001.9,0.24987849]
[1760540652504,0.1248,4003.4,4001.7,0.4494]
[1760540652820,3.008802,4003.3,4001.7,0.4494]
[1760540653131,3.81341,4003.1,4001.5,2.49900608]
[1760540653331,2.3616,4003.0,4001.5,2.49904879]
[1760540653537,14.40770379,4002.8,4001.1,0.002]
[1760540653839,0.2301,4002.9,4001.1,0.002]
[1760540653840,3.039869,4002.0,4001.1,0.002]
[1760540653995,0.6336,4002.5,4001.1,0.002]
[1760540654194,0.1305,4002.9,4001.9,2.49875634]
[1760540654393,0.1305,4002.9,4001.3,0.222]
[1760540654394,0.1305,4002.9,4001.8,2.49886682]
[1760540654616,0.1305,4002.9,4001.3,0.222]
[1760540655023,0.2141,4003.8,4001.5,0.4494]
[1760540655226,0.1255,4003.9,4001.5,0.4494]
[1760540655441,0.1255,4003.9,4002.6,2.4983666]
[1760540655599,0.1255,4003.9,4001.6,2.49900039]
[1760540655801,0.1255,4003.9,4002.7,2.49831206]
[1760540656110,11.393248,4004.8,4002.7,0.4494]
[1760540656313,11.393248,4004.8,4003.4,2.4978768]
[1760540656314,0.1248,4003.5,4003.4,2.4978768]
[1760540656720,0.4388,4004.9,4003.6,2.49773405]
[1760540656721,2.783155,4004.8,4003.6,2.49773405]
[1760540656892,0.1248,4003.6,4002.9,0.1248]
[1760540657093,0.1248,4003.3,4002.8,2.4982435]
[1760540657307,0.1248,4003.3,4003.1,2.49801116]
[1760540657507,0.1248,4003.3,4003.0,2.4981264]
[1760540657718,0.099,4004.7,4003.1,0.4494]
[1760540658025,0.1248,4003.8,4003.1,0.7962]
[1760540658328,0.1248,4003.8,4003.7,2.49768963]
[1760540658500,0.1248,4004.4,4003.7,0.84894585]
[1760540658696,0.1248,4004.4,4003.7,0.1248]
[1760540659025,0.2144,4004.3,4003.2,2.49795264]
[1760540659230,0.2144,4004.3,4003.3,2.49793297]
[1760540659406,0.2144,4004.3,4002.7,0.4494]
[1760540659601,0.2144,4004.3,4003.2,2.49798494]
[1760540659825,0.2144,4004.3,4002.7,0.4494]
[1760540660129,0.2144,4004.3,4002.2,0.222]
[1760540660130,0.6336,4004.1,4002.2,0.222]
[1760540660337,1.728,4003.9,4002.6,2.49832478]
[1760540660520,2.733728,4004.0,4002.5,2.49840208]
[1760540660521,6.485166,4004.0,4002.5,2.49840208]
[1760540660704,2.511549,4004.0,4002.6,2.49835412]
[1760540661030,0.6336,4004.1,4002.7,2.49830259]
[1760540661348,0.6336,4004.1,4002.9,2.49816865]
[1760540661497,0.6336,4004.1,4002.2,0.222]
[1760540661498,1.728,4003.9,4002.2,0.222]
[1760540661703,0.6336,4003.7,4002.3,2.4985603]
[1760540661997,0.6336,4003.6,4002.2,2.49862537]
[1760540662228,0.6336,4003.6,4001.7,2.49893795]
[1760540662229,0.6336,4003.6,4002.1,0.222]
[1760540662432,1.9424,4004.3,4002.2,0.4494]
[1760540662636,2.958491,4004.0,4002.2,0.76641237]
[1760540662942,4.22573721,4003.7,4002.1,0.222]
[1760540663233,2.3616,4003.7,4002.3,2.49851428]
[1760540663533,2.59881097,4003.9,4001.7,0.4494]
[1760540663534,5.571551,4003.5,4001.8,2.49883697]
[1760540663741,5.113051,4003.5,4001.9,2.49877034]
[1760540663951,10.1922,4003.1,4001.4,0.002]
[1760540664109,0.1012,4003.4,4001.4,0.002]
[1760540664110,0.6336,4002.6,4001.4,0.002]
[1760540664464,2.048943,4002.3,4001.4,0.002]
[1760540664756,3.049295,4002.3,4001.4,0.002]
[1760540664965,2.3616,4002.1,4001.4,0.002]
[1760540665119,7.770473,4001.6,4001.4,0.002]
[1760540665325,13.60071285,4001.5,4001.4,0.002]
[1760540665511,13.31643285,4001.5,4001.4,0.002]
[1760540665711,6.477538,4001.5,4001.4,0.002]
[1760540665909,4.715147,4001.5,4001.4,0.002]
[1760540666138,1.728,4001.5,4001.4,0.002]
[1760540666321,0.2132,4002.0,4001.4,0.002]
[1760540666659,0.1276,4002.7,4001.9,2.49880908]
[1760540666851,0.1276,4002.7,4002.0,2.49874248]
[1760540667023,1.6041529,4004.9,4002.3,2.4985555]
[1760540667024,2.473954,4003.7,4002.3,2.4985555]
[1760540667222,4.201954,4003.7,4001.4,0.70173064]
[1760540667426,0.0998,4003.6,4001.4,0.4514]
[1760540667634,0.0998,4003.6,4001.5,2.49906285]
[1760540667853,2.4979392,4003.3,4001.5,2.49906285]
[1760540668061,1.728,4002.9,4001.5,2.49906285]
[1760540668369,0.127,4002.8,4001.4,0.002]
[1760540668656,0.127,4002.8,4001.8,2.49886416]
[1760540668860,0.1248,4002.2,4001.7,2.4989152]
[1760540669067,0.1248,4002.2,4001.6,2.62379827]
[1760540669267,0.6336,4002.7,4001.4,0.002]
[1760540669447,0.1248,4001.6,4001.4,0.002]
[1760540669624,0.1248,4001.6,4001.5,2.49906285]
[1760540669824,0.1248,4002.2,4002.0,2.49871891]
[1760540670023,0.1248,4002.2,4001.4,0.002]
[1760540670024,0.7337,4003.6,4002.1,2.49868818]
[1760540670251,0.1004,4004.2,4002.2,2.523612]
[1760540670467,0.1004,4004.2,4002.9,2.49818561]
[1760540670665,0.3134,4005.0,4002.9,0.24981856]
[1760540670822,0.3134,4005.0,4003.4,2.49786659]
[1760540671023,0.2132,4004.7,4003.5,2.49775302]
[1760540671327,0.001,4005.3,4004.3,2.4972586]
[1760540671541,0.001,4005.3,4003.6,3.14037752]
[1760540671719,0.001,4005.3,4004.9,2.49693298]
[1760540671943,0.001,4005.3,4005.1,2.49680642]
[1760540672260,0.001,4005.3,4005.2,2.71875421]
[1760540672556,0.001,4005.3,4004.1,2.94683245]
[1760540672773,0.001,4005.3,4004.6,2.49708522]
[1760540673129,0.001,4005.3,4004.1,0.4494]
[1760540673433,0.001,4005.3,4004.7,2.49702936]
[1760540673666,0.001,4005.3,4004.5,2.49715996]
[1760540673818,0.001,4005.3,4004.8,2.49698202]
[1760540674267,0.001,4005.3,4004.6,0.699116]
[1760540674268,0.001,4005.3,4004.9,0.4494]
[1760540674964,0.001,4005.3,4004.6,0.249716]
[1760540675338,0.001,4005.3,4004.3,0.4494]
[1760540675758,0.001,4005.3,4005.2,2.49675421]
[1760540676156,0.001,4005.3,4005.2,2.93305421]
[1760540676364,0.001,4005.8,4005.7,2.49644256]
[1760540676590,0.001,4005.8,4005.7,2.52140698]
[1760540676780,0.001,4006.2,4006.1,2.4961933]
[1760540676964,0.001,4006.2,4006.1,2.7296933]
[1760540677142,0.001,4006.2,4006.1,3.19095523]
[1760540677343,0.001,4006.2,4006.1,5.8299933]
[1760540677551,0.001,4006.2,4006.1,3.1659933]
[1760540677771,0.001,4006.2,4006.1,3.73222045]
[1760540677978,0.001,4006.2,4006.1,6.39622045]
[1760540678366,0.001,4006.2,4006.1,3.73222045]
[1760540678547,0.001,4006.2,4006.1,6.42118238]
[1760540678747,0.001,4006.2,4006.1,3.73222045]
[1760540678943,0.001,4006.2,4006.1,6.11878238]
[1760540679148,0.001,4010.0,4006.2,1.728]
[1760540679344,0.001,4010.0,4008.4,2.49470446]
[1760540679549,0.001,4010.0,4007.0,2.49563264]
[1760540679550,0.001,4010.0,4007.3,2.49541757]
[1760540679863,0.001,4010.0,4007.4,2.664]
[1760540680052,2.49383292,4009.9,4008.3,2.49477389]
[1760540680255,2.49383292,4009.9,4008.0,2.49497696]
[1760540680256,0.124,4009.3,4008.6,0.124]
[1760540680792,0.1323,4009.2,4008.6,0.124]
[1760540680993,0.124,4009.3,4008.6,0.124]
[1760540681353,0.124,4009.3,4008.8,2.49448741]
[1760540681676,0.001,4009.5,4009.1,0.124]
[1760540682255,0.001,4009.5,4009.1,2.61832153]
[1760540682455,0.001,4009.5,4009.1,0.124]
[1760540682692,0.001,4009.5,4009.2,0.46124263]
[1760540682932,0.001,4009.5,4009.4,0.124]
[1760540683086,0.001,4009.5,4009.4,2.61813877]
[1760540683288,0.001,4009.5,4008.9,2.49443303]
[1760540683486,0.001,4009.5,4009.0,0.02494387]
[1760540683718,0.001,4009.5,4008.7,0.02494574]
[1760540683910,0.0002,4009.5,4008.6,0.4363]
[1760540684389,0.001,4010.0,4009.9,2.49382777]
[1760540684791,0.001,4010.0,4009.8,5.15587197]
[1760540685023,0.001,4010.4,4009.1,0.4363]
[1760540685231,0.001,4010.4,4009.3,2.49420098]
[1760540685430,0.001,4010.4,4009.4,2.81053887]
[1760540685633,0.001,4010.4,4010.3,2.49357903]
[1760540685790,0.001,4010.8,4010.7,2.49333034]
[1760540686185,0.001,4010.8,4010.7,2.95456364]
[1760540686619,0.001,4010.8,4010.7,3.56323034]
[1760540686785,0.001,4013.3,4011.2,3.12661954]
[1760540686987,0.001,4013.3,4011.3,0.6336]
[1760540687292,0.001,4013.3,4013.2,2.72527713]
[1760540687515,0.6,4014.0,4013.7,2.49146672]
[1760540687722,0.6,4014.0,4013.0,0.2335]
[1760540687917,0.6,4014.0,4012.6,0.2335]
[1760540688123,0.6,4014.0,4012.4,0.4363]